[Event "Late-Titled-Tuesday-Blitz-January-30-2024"]
[Site "Chess.com"]
[Date "2024.01.30"]
[Round "10"]
[White "mishanick"]
[Black "manitodeplomo"]
[Result "1-0"]
[WhiteElo "3106"]
[BlackElo "2696"]
[TimeControl "180+1"]
[EndTime "15:50:37 PST"]
[Termination "mishanick won by resignation"]

1. d4 {[%clk 0:03:00.9]} 1... g6 {[%clk 0:02:59]} 2. e4 {[%clk 0:03:00.9]} 2...
Bg7 {[%clk 0:02:58.4]} 3. Nc3 {[%clk 0:03:01.5]} 3... c5 {[%clk 0:02:53.3]} 4.
dxc5 {[%clk 0:03:01.3]} 4... Bxc3+ {[%clk 0:02:52.8]} 5. bxc3 {[%clk 0:03:01.4]}
5... Nf6 {[%clk 0:02:53.5]} 6. f3 {[%clk 0:03:00.9]} 6... Qa5 {[%clk 0:02:52.4]}
7. Be3 {[%clk 0:02:52.4]} 7... Qxc3+ {[%clk 0:02:48.8]} 8. Kf2 {[%clk
0:02:51.9]} 8... Nc6 {[%clk 0:02:49]} 9. Ne2 {[%clk 0:02:50.7]} 9... Qa5 {[%clk
0:02:46.9]} 10. Nf4 {[%clk 0:02:49.4]} 10... O-O {[%clk 0:02:43.6]} 11. h4
{[%clk 0:02:50]} 11... b6 {[%clk 0:02:34.6]} 12. cxb6 {[%clk 0:02:41.7]} 12...
axb6 {[%clk 0:02:35.5]} 13. h5 {[%clk 0:02:42.4]} 13... Ba6 {[%clk 0:02:27.5]}
14. Bxa6 {[%clk 0:02:39.8]} 14... Rxa6 {[%clk 0:02:25.7]} 15. Nd5 {[%clk
0:02:38.5]} 15... Nxd5 {[%clk 0:02:21.4]} 16. exd5 {[%clk 0:02:39.4]} 16... Nb4
{[%clk 0:02:16]} 17. c4 {[%clk 0:02:32]} 17... Rc8 {[%clk 0:01:58.9]} 18. a3
{[%clk 0:02:28.1]} 18... Rxc4 {[%clk 0:01:27.9]} 19. axb4 {[%clk 0:02:28.1]}
19... Qxa1 {[%clk 0:01:28.2]} 20. Qxa1 {[%clk 0:02:28.8]} 20... Rxa1 {[%clk
0:01:28.7]} 21. Rxa1 {[%clk 0:02:29.4]} 21... Rxb4 {[%clk 0:01:29.3]} 22. Bh6
{[%clk 0:02:29]} 1-0

[Event "Late-Titled-Tuesday-Blitz-January-30-2024"]
[Site "Chess.com"]
[Date "2024.01.30"]
[Round "10"]
[White "Genghis_K"]
[Black "blitis"]
[Result "1-0"]
[WhiteElo "2847"]
[BlackElo "2636"]
[TimeControl "180+1"]
[EndTime "15:52:09 PST"]
[Termination "Genghis_K won by resignation"]

1. e4 {[%clk 0:02:50.5]} 1... d6 {[%clk 0:02:59.9]} 2. d4 {[%clk 0:02:50.8]}
2... Nf6 {[%clk 0:02:59.9]} 3. Nc3 {[%clk 0:02:51.5]} 3... g6 {[%clk 0:03:00.4]}
4. f4 {[%clk 0:02:52]} 4... Bg7 {[%clk 0:02:59.4]} 5. Nf3 {[%clk 0:02:51.9]}
5... O-O {[%clk 0:02:58.9]} 6. e5 {[%clk 0:02:51.6]} 6... dxe5 {[%clk
0:02:57.3]} 7. fxe5 {[%clk 0:02:52.5]} 7... Nd5 {[%clk 0:02:57.6]} 8. Bc4 {[%clk
0:02:49.1]} 8... Be6 {[%clk 0:02:56.7]} 9. Qe2 {[%clk 0:02:41.8]} 9... Nxc3
{[%clk 0:02:51.8]} 10. bxc3 {[%clk 0:02:42.7]} 10... Bxc4 {[%clk 0:02:51.9]} 11.
Qxc4 {[%clk 0:02:43.6]} 11... Nd7 {[%clk 0:02:34.4]} 12. O-O {[%clk 0:02:43.8]}
12... Nb6 {[%clk 0:02:34]} 13. Qb3 {[%clk 0:02:41.2]} 13... a5 {[%clk 0:02:26]}
14. c4 {[%clk 0:02:37.2]} 14... a4 {[%clk 0:02:25.9]} 15. Qd3 {[%clk 0:02:35]}
15... c5 {[%clk 0:02:19.6]} 16. d5 {[%clk 0:02:32]} 16... f6 {[%clk 0:02:11]}
17. e6 {[%clk 0:02:30.8]} 17... Nc8 {[%clk 0:02:06.4]} 18. Rb1 {[%clk
0:02:30.7]} 18... Nd6 {[%clk 0:02:06.1]} 19. Bf4 {[%clk 0:02:31.3]} 19... Ra7
{[%clk 0:02:03.4]} 20. h4 {[%clk 0:02:21.8]} 20... f5 {[%clk 0:01:25.6]} 21. h5
{[%clk 0:02:20.4]} 21... Ne4 {[%clk 0:01:22.8]} 22. Ne5 {[%clk 0:02:08.4]} 22...
g5 {[%clk 0:01:14.9]} 23. Bh2 {[%clk 0:02:02.2]} 23... Bxe5 {[%clk 0:01:09.1]}
24. Bxe5 {[%clk 0:02:01]} 24... Qe8 {[%clk 0:01:09.3]} 25. g4 {[%clk 0:01:56.1]}
25... h6 {[%clk 0:00:54.9]} 26. Rxf5 {[%clk 0:01:48.8]} 26... Rxf5 {[%clk
0:00:51.4]} 27. gxf5 {[%clk 0:01:49.7]} 1-0

[Event "Late-Titled-Tuesday-Blitz-January-30-2024"]
[Site "Chess.com"]
[Date "2024.01.30"]
[Round "10"]
[White "RantomOpening"]
[Black "ccccvhhhj"]
[Result "1-0"]
[WhiteElo "2526"]
[BlackElo "2419"]
[TimeControl "180+1"]
[EndTime "15:52:21 PST"]
[Termination "RantomOpening won by resignation"]

1. e4 {[%clk 0:02:59.5]} 1... e6 {[%clk 0:03:00.4]} 2. Qe2 {[%clk 0:02:59.3]}
2... d5 {[%clk 0:03:01.3]} 3. exd5 {[%clk 0:03:00.2]} 3... Qxd5 {[%clk
0:03:00.9]} 4. Nc3 {[%clk 0:03:00.9]} 4... Qd8 {[%clk 0:03:01.6]} 5. b3 {[%clk
0:03:01.1]} 5... Nf6 {[%clk 0:02:57.8]} 6. Bb2 {[%clk 0:03:01.4]} 6... Bb4
{[%clk 0:02:47.6]} 7. O-O-O {[%clk 0:03:01.2]} 7... O-O {[%clk 0:02:48]} 8. Nf3
{[%clk 0:03:01.2]} 8... Qe7 {[%clk 0:02:44.7]} 9. g4 {[%clk 0:03:01.1]} 9... Ba3
{[%clk 0:02:44.3]} 10. g5 {[%clk 0:03:00.5]} 10... Bxb2+ {[%clk 0:02:40.1]} 11.
Kxb2 {[%clk 0:03:00.1]} 11... Nfd7 {[%clk 0:02:41]} 12. d4 {[%clk 0:02:58.4]}
12... a5 {[%clk 0:02:35.3]} 13. a4 {[%clk 0:02:57.3]} 13... c6 {[%clk
0:02:32.3]} 14. h4 {[%clk 0:02:56.6]} 14... Na6 {[%clk 0:02:17.7]} 15. h5 {[%clk
0:02:55.9]} 15... Nc7 {[%clk 0:02:17]} 16. h6 {[%clk 0:02:51.1]} 16... g6 {[%clk
0:02:14.8]} 17. Ne4 {[%clk 0:02:51.4]} 17... b5 {[%clk 0:02:12.5]} 18. Ra1
{[%clk 0:02:48.9]} 18... bxa4 {[%clk 0:02:06.4]} 19. Rxa4 {[%clk 0:02:49.8]}
19... Ba6 {[%clk 0:02:06.7]} 20. Qd2 {[%clk 0:02:47.6]} 20... Bb5 {[%clk
0:02:03]} 21. Rxa5 {[%clk 0:02:44]} 21... Rxa5 {[%clk 0:01:50.5]} 22. Qxa5
{[%clk 0:02:44.9]} 22... Ra8 {[%clk 0:01:50.6]} 23. Qxc7 {[%clk 0:02:42.2]}
23... Qa3+ {[%clk 0:01:29]} 24. Kc3 {[%clk 0:02:41.9]} 24... Qa1+ {[%clk
0:01:26.9]} 25. Kb4 {[%clk 0:02:41.3]} 25... Bxf1 {[%clk 0:01:20.3]} 26. Rxf1
{[%clk 0:02:25.1]} 26... Qxf1 {[%clk 0:01:12]} 27. Qxd7 {[%clk 0:02:24.9]} 27...
Qb5+ {[%clk 0:00:57]} 28. Kc3 {[%clk 0:02:24.7]} 28... Qa5+ {[%clk 0:00:54]} 29.
Kd3 {[%clk 0:02:20.5]} 29... Qb5+ {[%clk 0:00:53.3]} 30. Ke3 {[%clk 0:02:18.8]}
30... Rf8 {[%clk 0:00:24.9]} 31. Qe7 {[%clk 0:02:17.3]} 31... Qb8 {[%clk
0:00:24.1]} 32. Qf6 {[%clk 0:02:16.1]} 1-0

[Event "Late-Titled-Tuesday-Blitz-January-30-2024"]
[Site "Chess.com"]
[Date "2024.01.30"]
[Round "10"]
[White "Eloist"]
[Black "Bryanl106"]
[Result "0-1"]
[WhiteElo "2428"]
[BlackElo "2539"]
[TimeControl "180+1"]
[EndTime "15:52:23 PST"]
[Termination "Bryanl106 won by checkmate"]

1. e4 {[%clk 0:02:55.5]} 1... e5 {[%clk 0:03:00.2]} 2. Bc4 {[%clk 0:02:49.6]}
2... Nc6 {[%clk 0:02:56.8]} 3. Nf3 {[%clk 0:02:48.9]} 3... Nf6 {[%clk
0:02:56.8]} 4. d3 {[%clk 0:02:48.9]} 4... Bc5 {[%clk 0:02:56.3]} 5. O-O {[%clk
0:02:48.3]} 5... h6 {[%clk 0:02:52]} 6. c3 {[%clk 0:02:47.7]} 6... d6 {[%clk
0:02:51.3]} 7. Nbd2 {[%clk 0:02:45.9]} 7... a5 {[%clk 0:02:50.6]} 8. Bb5 {[%clk
0:02:38.9]} 8... Bd7 {[%clk 0:02:46.5]} 9. Re1 {[%clk 0:02:36.6]} 9... O-O
{[%clk 0:02:46.2]} 10. Nf1 {[%clk 0:02:35.9]} 10... Nb8 {[%clk 0:02:45.9]} 11.
Bxd7 {[%clk 0:02:33.7]} 11... Nbxd7 {[%clk 0:02:46.8]} 12. d4 {[%clk 0:02:32.4]}
12... Bb6 {[%clk 0:02:45.5]} 13. Ng3 {[%clk 0:02:29.9]} 13... Re8 {[%clk
0:02:42.4]} 14. Be3 {[%clk 0:02:18.5]} 14... exd4 {[%clk 0:02:39.5]} 15. Bxd4
{[%clk 0:02:17.1]} 15... Bxd4 {[%clk 0:02:34.8]} 16. cxd4 {[%clk 0:02:16.8]}
16... Nf8 {[%clk 0:02:34.1]} 17. Rc1 {[%clk 0:02:15.1]} 17... c6 {[%clk
0:02:32]} 18. Qb3 {[%clk 0:02:07.9]} 18... Qd7 {[%clk 0:02:24.1]} 19. e5 {[%clk
0:02:04.5]} 19... Nd5 {[%clk 0:02:23.9]} 20. Ne4 {[%clk 0:02:03.5]} 20... dxe5
{[%clk 0:02:21]} 21. Nc5 {[%clk 0:01:58.6]} 21... Qc8 {[%clk 0:02:18.8]} 22.
Qxb7 {[%clk 0:01:52.6]} 22... Qxb7 {[%clk 0:02:16.9]} 23. Nxb7 {[%clk
0:01:51.8]} 23... e4 {[%clk 0:02:16.7]} 24. Ne5 {[%clk 0:01:29.3]} 24... Reb8
{[%clk 0:02:12.6]} 25. Nd6 {[%clk 0:01:20.3]} 25... Rxb2 {[%clk 0:02:11.8]} 26.
Rxc6 {[%clk 0:01:11.1]} 26... f6 {[%clk 0:02:10.5]} 27. Nec4 {[%clk 0:00:55.5]}
27... Rxa2 {[%clk 0:02:09.4]} 28. Rc5 {[%clk 0:00:46.5]} 28... Nf4 {[%clk
0:02:05.9]} 29. Rc7 {[%clk 0:00:43.9]} 29... Nd3 {[%clk 0:02:04.9]} 30. Rf1
{[%clk 0:00:42.3]} 30... Ne6 {[%clk 0:02:02.4]} 31. Re7 {[%clk 0:00:41.4]} 31...
Nxd4 {[%clk 0:02:02.6]} 32. Ne8 {[%clk 0:00:36.4]} 32... Ne2+ {[%clk 0:02:01.3]}
33. Kh1 {[%clk 0:00:35.9]} 33... Nxf2+ {[%clk 0:02:02.2]} 34. Rxf2 {[%clk
0:00:29.1]} 34... Ra1+ {[%clk 0:02:03.1]} 35. Rf1 {[%clk 0:00:29.2]} 35... Rxf1#
{[%clk 0:02:04]} 0-1

[Event "Late-Titled-Tuesday-Blitz-January-30-2024"]
[Site "Chess.com"]
[Date "2024.01.30"]
[Round "10"]
[White "Flaccidmoves"]
[Black "JCVanDamme10"]
[Result "0-1"]
[WhiteElo "2423"]
[BlackElo "2315"]
[TimeControl "180+1"]
[EndTime "15:52:37 PST"]
[Termination "JCVanDamme10 won by resignation"]

1. Nf3 {[%clk 0:03:00.9]} 1... Nf6 {[%clk 0:02:59.2]} 2. c4 {[%clk 0:02:59.4]}
2... e6 {[%clk 0:02:58.4]} 3. g3 {[%clk 0:02:57.3]} 3... d5 {[%clk 0:02:58.9]}
4. Bg2 {[%clk 0:02:56.9]} 4... Be7 {[%clk 0:02:58.4]} 5. O-O {[%clk 0:02:56.8]}
5... O-O {[%clk 0:02:58.9]} 6. d4 {[%clk 0:02:56.2]} 6... c6 {[%clk 0:02:59]} 7.
Qc2 {[%clk 0:02:45.7]} 7... b6 {[%clk 0:02:55.5]} 8. Bf4 {[%clk 0:02:42.3]} 8...
Ba6 {[%clk 0:02:54.5]} 9. Nbd2 {[%clk 0:02:41.1]} 9... Nbd7 {[%clk 0:02:51.5]}
10. Rac1 {[%clk 0:02:29.8]} 10... Rc8 {[%clk 0:02:48.8]} 11. Qa4 {[%clk
0:02:21.3]} 11... Bxc4 {[%clk 0:02:48.1]} 12. Nxc4 {[%clk 0:02:19.6]} 12... b5
{[%clk 0:02:48.7]} 13. Qxa7 {[%clk 0:02:14.1]} 13... bxc4 {[%clk 0:02:48.7]} 14.
b3 {[%clk 0:01:57.2]} 14... Ra8 {[%clk 0:02:45.6]} 15. Qb7 {[%clk 0:01:56.5]}
15... Qb6 {[%clk 0:02:19.6]} 16. Qxb6 {[%clk 0:01:51.6]} 16... Nxb6 {[%clk
0:02:20.5]} 17. Ne5 {[%clk 0:01:48.8]} 17... Rxa2 {[%clk 0:02:12.5]} 18. bxc4
{[%clk 0:01:45]} 18... Nxc4 {[%clk 0:02:04.3]} 19. Nxc4 {[%clk 0:01:42.3]} 19...
dxc4 {[%clk 0:02:04.6]} 20. e3 {[%clk 0:01:35.4]} 20... Nd5 {[%clk 0:01:53.5]}
21. Rxc4 {[%clk 0:01:34.6]} 21... Nxf4 {[%clk 0:01:52.9]} 22. gxf4 {[%clk
0:01:34.3]} 22... g6 {[%clk 0:01:47.5]} 23. Rxc6 {[%clk 0:01:31.4]} 23... Rb8
{[%clk 0:01:47.4]} 24. Rc7 {[%clk 0:01:24.8]} 24... Bh4 {[%clk 0:01:47.2]} 25.
d5 {[%clk 0:01:24.4]} 25... Rbb2 {[%clk 0:01:41.9]} 26. d6 {[%clk 0:01:13]}
26... Bxf2+ {[%clk 0:01:39.7]} 27. Rxf2 {[%clk 0:01:09.4]} 27... Rxf2 {[%clk
0:01:38.4]} 28. d7 {[%clk 0:01:07.6]} 28... Rxg2+ {[%clk 0:01:36.7]} 29. Kh1
{[%clk 0:01:04]} 29... Rxh2+ {[%clk 0:01:36.7]} 30. Kg1 {[%clk 0:01:03.6]} 30...
Rhg2+ {[%clk 0:01:36.2]} 31. Kh1 {[%clk 0:01:03.2]} 31... Rgd2 {[%clk
0:01:35.5]} 32. Rc8+ {[%clk 0:00:59.7]} 32... Kg7 {[%clk 0:01:35.8]} 33. d8=Q
{[%clk 0:00:58.5]} 33... Ra1+ {[%clk 0:01:36.3]} 0-1

[Event "Late-Titled-Tuesday-Blitz-January-30-2024"]
[Site "Chess.com"]
[Date "2024.01.30"]
[Round "10"]
[White "protectiago"]
[Black "RebecaJimnz"]
[Result "0-1"]
[WhiteElo "2066"]
[BlackElo "2285"]
[TimeControl "180+1"]
[EndTime "15:52:51 PST"]
[Termination "RebecaJimnz won by resignation"]

1. d4 {[%clk 0:02:59.5]} 1... d5 {[%clk 0:02:59.8]} 2. c4 {[%clk 0:02:58.7]}
2... e6 {[%clk 0:03:00.4]} 3. g3 {[%clk 0:02:57.3]} 3... Nf6 {[%clk 0:03:00.6]}
4. Nf3 {[%clk 0:02:55.4]} 4... Be7 {[%clk 0:03:00.6]} 5. Bg2 {[%clk 0:02:54]}
5... O-O {[%clk 0:03:01.2]} 6. O-O {[%clk 0:02:51]} 6... dxc4 {[%clk 0:03:01.8]}
7. Ne5 {[%clk 0:02:44.8]} 7... c5 {[%clk 0:03:00.3]} 8. dxc5 {[%clk 0:02:42]}
8... Qc7 {[%clk 0:03:00.9]} 9. Nxc4 {[%clk 0:02:39]} 9... Qxc5 {[%clk
0:03:01.5]} 10. b3 {[%clk 0:02:37.3]} 10... Rd8 {[%clk 0:03:02]} 11. Qe1 {[%clk
0:02:23.5]} 11... Nc6 {[%clk 0:03:02.2]} 12. Be3 {[%clk 0:02:23.3]} 12... Qh5
{[%clk 0:02:59.6]} 13. Nc3 {[%clk 0:02:10.3]} 13... Ng4 {[%clk 0:02:58.3]} 14.
h3 {[%clk 0:02:09.6]} 14... Nxe3 {[%clk 0:02:57.9]} 15. Nxe3 {[%clk 0:02:05.7]}
15... Bd7 {[%clk 0:02:36.4]} 16. Rd1 {[%clk 0:01:51.5]} 16... Be8 {[%clk
0:02:36.1]} 17. Rxd8 {[%clk 0:01:49.4]} 17... Rxd8 {[%clk 0:02:37]} 18. Qc1
{[%clk 0:01:47.7]} 18... b6 {[%clk 0:02:30.3]} 19. Rd1 {[%clk 0:01:44.6]} 19...
Nd4 {[%clk 0:02:23.6]} 20. Rd2 {[%clk 0:01:40.5]} 20... Qa5 {[%clk 0:02:16]} 21.
Nc4 {[%clk 0:01:33.3]} 21... Qc5 {[%clk 0:02:09.8]} 22. Ne4 {[%clk 0:01:26.3]}
22... Qc7 {[%clk 0:02:04.5]} 23. Qd1 {[%clk 0:01:20.3]} 23... e5 {[%clk
0:01:58.1]} 24. Ne3 {[%clk 0:01:16.8]} 24... Bb4 {[%clk 0:01:53.6]} 25. Rd3
{[%clk 0:01:15]} 25... Bb5 {[%clk 0:01:52.6]} 26. Nc4 {[%clk 0:01:08.6]} 26...
Bxc4 {[%clk 0:01:49.7]} 27. bxc4 {[%clk 0:01:08.8]} 27... Qxc4 {[%clk
0:01:50.4]} 28. e3 {[%clk 0:01:09.1]} 28... Nf3+ {[%clk 0:01:51]} 29. Qxf3
{[%clk 0:00:54.5]} 29... Qxd3 {[%clk 0:01:45.5]} 30. Ng5 {[%clk 0:00:50]} 30...
Qd1+ {[%clk 0:01:42]} 31. Kh2 {[%clk 0:00:48.5]} 31... Qxf3 {[%clk 0:01:41.4]}
32. Bxf3 {[%clk 0:00:48.7]} 32... Rd2 {[%clk 0:01:39.6]} 33. Kg2 {[%clk
0:00:48.6]} 33... Bc5 {[%clk 0:01:35.8]} 34. Ne4 {[%clk 0:00:46.5]} 34... Rxa2
{[%clk 0:01:33.4]} 0-1

[Event "Late-Titled-Tuesday-Blitz-January-30-2024"]
[Site "Chess.com"]
[Date "2024.01.30"]
[Round "10"]
[White "english_player_89"]
[Black "melissa_guez"]
[Result "1-0"]
[WhiteElo "2438"]
[BlackElo "2267"]
[TimeControl "180+1"]
[EndTime "15:52:53 PST"]
[Termination "english_player_89 won by checkmate"]

1. e4 {[%clk 0:02:49.1]} 1... c5 {[%clk 0:02:58.9]} 2. Nf3 {[%clk 0:02:49.2]}
2... e6 {[%clk 0:02:59.2]} 3. g3 {[%clk 0:02:49.1]} 3... Nf6 {[%clk 0:02:56.9]}
4. Qe2 {[%clk 0:02:45.5]} 4... Nc6 {[%clk 0:02:56.6]} 5. Bg2 {[%clk 0:02:45.3]}
5... d6 {[%clk 0:02:54.3]} 6. O-O {[%clk 0:02:44.9]} 6... Be7 {[%clk 0:02:54.4]}
7. c3 {[%clk 0:02:44.7]} 7... Bd7 {[%clk 0:02:53.6]} 8. d4 {[%clk 0:02:45]} 8...
cxd4 {[%clk 0:02:48.7]} 9. cxd4 {[%clk 0:02:45.9]} 9... O-O {[%clk 0:02:46.7]}
10. Nc3 {[%clk 0:02:44.5]} 10... d5 {[%clk 0:02:43.6]} 11. e5 {[%clk 0:02:44.3]}
11... Nh5 {[%clk 0:02:41.3]} 12. g4 {[%clk 0:02:39.3]} 12... f6 {[%clk
0:02:20.6]} 13. gxh5 {[%clk 0:02:36.8]} 13... fxe5 {[%clk 0:02:20.7]} 14. Nxe5
{[%clk 0:02:33.9]} 14... Nxd4 {[%clk 0:02:20.3]} 15. Qd3 {[%clk 0:02:29.8]}
15... Nf5 {[%clk 0:02:13.4]} 16. Nxd5 {[%clk 0:01:51.7]} 16... exd5 {[%clk
0:01:42.9]} 17. Qxd5+ {[%clk 0:01:50.4]} 17... Kh8 {[%clk 0:01:41.7]} 18. Qxd7
{[%clk 0:01:47.7]} 18... Qa5 {[%clk 0:01:34.2]} 19. Bf4 {[%clk 0:01:35.7]} 19...
Rad8 {[%clk 0:01:30.1]} 20. Qxb7 {[%clk 0:01:33.9]} 20... Nh4 {[%clk 0:01:24.2]}
21. Qxe7 {[%clk 0:01:25.5]} 21... Rxf4 {[%clk 0:01:11.9]} 22. Rad1 {[%clk
0:00:55.9]} 22... Rdf8 {[%clk 0:00:55]} 23. Rd7 {[%clk 0:00:55.1]} 23... Nf5
{[%clk 0:00:49.1]} 24. Qxf8# {[%clk 0:00:53.7]} 1-0

[Event "Late-Titled-Tuesday-Blitz-January-30-2024"]
[Site "Chess.com"]
[Date "2024.01.30"]
[Round "10"]
[White "IngOscarArdila"]
[Black "ninguno46"]
[Result "1-0"]
[WhiteElo "2341"]
[BlackElo "2490"]
[TimeControl "180+1"]
[EndTime "15:53:13 PST"]
[Termination "IngOscarArdila won by resignation"]

1. d4 {[%clk 0:02:56.4]} 1... Nf6 {[%clk 0:02:59.2]} 2. c4 {[%clk 0:02:56.5]}
2... e6 {[%clk 0:02:59.4]} 3. Nc3 {[%clk 0:02:56.7]} 3... Bb4 {[%clk 0:02:59.6]}
4. Qc2 {[%clk 0:02:57.2]} 4... Nc6 {[%clk 0:02:59]} 5. Nf3 {[%clk 0:02:56.7]}
5... d6 {[%clk 0:02:58.8]} 6. Bg5 {[%clk 0:02:56.4]} 6... h6 {[%clk 0:02:58.6]}
7. Bxf6 {[%clk 0:02:56.1]} 7... Qxf6 {[%clk 0:02:58.1]} 8. e3 {[%clk 0:02:56.5]}
8... e5 {[%clk 0:02:57.4]} 9. dxe5 {[%clk 0:02:43.5]} 9... dxe5 {[%clk
0:02:56.4]} 10. a3 {[%clk 0:02:43]} 10... Bxc3+ {[%clk 0:02:55.8]} 11. Qxc3
{[%clk 0:02:42.5]} 11... a5 {[%clk 0:02:54.8]} 12. Be2 {[%clk 0:02:39.8]} 12...
a4 {[%clk 0:02:52.5]} 13. O-O {[%clk 0:02:37.8]} 13... O-O {[%clk 0:02:52.4]}
14. Rfd1 {[%clk 0:02:36.4]} 14... Qe7 {[%clk 0:02:51.3]} 15. c5 {[%clk
0:02:30.8]} 15... Bg4 {[%clk 0:02:45.9]} 16. h3 {[%clk 0:02:30]} 16... Bh5
{[%clk 0:02:43.7]} 17. Rd2 {[%clk 0:02:27.1]} 17... Rad8 {[%clk 0:02:40.2]} 18.
Rad1 {[%clk 0:02:27]} 18... Rxd2 {[%clk 0:02:32]} 19. Rxd2 {[%clk 0:02:26.5]}
19... Rd8 {[%clk 0:02:27.4]} 20. Rxd8+ {[%clk 0:02:23.3]} 20... Qxd8 {[%clk
0:02:26.8]} 21. g4 {[%clk 0:02:22.9]} 21... Bg6 {[%clk 0:02:26.2]} 22. Nxe5
{[%clk 0:02:22.4]} 22... Nxe5 {[%clk 0:02:25.7]} 23. Qxe5 {[%clk 0:02:20.9]}
23... Qd2 {[%clk 0:02:25.3]} 24. Bf3 {[%clk 0:02:06]} 24... Qc1+ {[%clk
0:02:20.8]} 25. Kg2 {[%clk 0:02:04.4]} 25... Bd3 {[%clk 0:02:20.1]} 26. Qe8+
{[%clk 0:01:42.5]} 26... Kh7 {[%clk 0:02:19.6]} 27. Be4+ {[%clk 0:01:43]} 27...
Bxe4+ {[%clk 0:02:19.8]} 28. Qxe4+ {[%clk 0:01:08.2]} 28... g6 {[%clk
0:02:19.3]} 29. Qe7 {[%clk 0:00:29.3]} 29... Qc4 {[%clk 0:02:16.6]} 30. Qxc7
{[%clk 0:00:28.1]} 30... Qe4+ {[%clk 0:02:13.3]} 31. Kg1 {[%clk 0:00:28]} 31...
Kg7 {[%clk 0:02:07.1]} 32. Qd6 {[%clk 0:00:26.5]} 32... Qb1+ {[%clk 0:02:06.6]}
33. Kg2 {[%clk 0:00:24.9]} 33... Qxb2 {[%clk 0:02:06.9]} 34. Qd4+ {[%clk
0:00:22.3]} 34... Qxd4 {[%clk 0:02:06.7]} 35. exd4 {[%clk 0:00:23.2]} 35... Kf6
{[%clk 0:02:07.2]} 36. Kf3 {[%clk 0:00:23.7]} 36... Kg5 {[%clk 0:02:06.6]} 37.
Ke4 {[%clk 0:00:22.6]} 37... h5 {[%clk 0:02:05.1]} 38. gxh5 {[%clk 0:00:21.9]}
38... gxh5 {[%clk 0:02:06]} 39. d5 {[%clk 0:00:21.9]} 39... Kf6 {[%clk
0:02:06.1]} 40. f4 {[%clk 0:00:21.8]} 40... h4 {[%clk 0:02:05.7]} 41. f5 {[%clk
0:00:20.8]} 41... Ke7 {[%clk 0:02:04]} 42. Ke5 {[%clk 0:00:18.6]} 42... f6+
{[%clk 0:02:03.7]} 43. Ke4 {[%clk 0:00:17]} 43... b5 {[%clk 0:02:03.6]} 44. cxb6
{[%clk 0:00:16.4]} 44... Kd6 {[%clk 0:02:03.6]} 45. Kd4 {[%clk 0:00:16.2]} 45...
Kd7 {[%clk 0:02:02.6]} 46. Kc5 {[%clk 0:00:16.5]} 46... Kc8 {[%clk 0:02:02.5]}
47. Kc6 {[%clk 0:00:16.4]} 1-0

[Event "Late-Titled-Tuesday-Blitz-January-30-2024"]
[Site "Chess.com"]
[Date "2024.01.30"]
[Round "10"]
[White "tarno17"]
[Black "Chempiblinka"]
[Result "0-1"]
[WhiteElo "2115"]
[BlackElo "2329"]
[TimeControl "180+1"]
[EndTime "15:53:20 PST"]
[Termination "Chempiblinka won by checkmate"]

1. e4 {[%clk 0:03:00.9]} 1... c5 {[%clk 0:02:50.4]} 2. Nf3 {[%clk 0:02:59.5]}
2... Nc6 {[%clk 0:02:49.8]} 3. Bb5 {[%clk 0:02:58.1]} 3... g6 {[%clk 0:02:47.2]}
4. O-O {[%clk 0:02:57.1]} 4... Bg7 {[%clk 0:02:46.9]} 5. d3 {[%clk 0:02:51.4]}
5... Nh6 {[%clk 0:02:16]} 6. Nc3 {[%clk 0:02:48.1]} 6... O-O {[%clk 0:02:15.1]}
7. h3 {[%clk 0:02:22.1]} 7... Nd4 {[%clk 0:02:13.7]} 8. Nxd4 {[%clk 0:02:06.3]}
8... cxd4 {[%clk 0:02:14.6]} 9. Ne2 {[%clk 0:02:05.6]} 9... d5 {[%clk
0:02:07.8]} 10. Ng3 {[%clk 0:01:50.3]} 10... a6 {[%clk 0:02:03]} 11. Ba4 {[%clk
0:01:49.9]} 11... b5 {[%clk 0:01:53.6]} 12. Bb3 {[%clk 0:01:48.3]} 12... Bb7
{[%clk 0:01:54]} 13. a4 {[%clk 0:01:30.1]} 13... b4 {[%clk 0:01:48.3]} 14. a5
{[%clk 0:01:24.9]} 14... Rc8 {[%clk 0:01:25.8]} 15. Bd2 {[%clk 0:01:13.8]} 15...
dxe4 {[%clk 0:01:19.2]} 16. Nxe4 {[%clk 0:01:02.1]} 16... Nf5 {[%clk 0:01:17.8]}
17. Bxb4 {[%clk 0:00:56.7]} 17... Bd5 {[%clk 0:01:03.5]} 18. Bxd5 {[%clk
0:00:52.5]} 18... Qxd5 {[%clk 0:01:04.4]} 19. Re1 {[%clk 0:00:31]} 19... Rfe8
{[%clk 0:01:01.3]} 20. Qe2 {[%clk 0:00:26.4]} 20... Nh4 {[%clk 0:00:53.3]} 21.
Rad1 {[%clk 0:00:22.7]} 21... f5 {[%clk 0:00:50.7]} 22. Ng5 {[%clk 0:00:20]}
22... Qxg2# {[%clk 0:00:49.9]} 0-1

[Event "Late-Titled-Tuesday-Blitz-January-30-2024"]
[Site "Chess.com"]
[Date "2024.01.30"]
[Round "10"]
[White "AsaHoffmann"]
[Black "Chesstrainer1"]
[Result "1-0"]
[WhiteElo "2363"]
[BlackElo "2468"]
[TimeControl "180+1"]
[EndTime "15:53:23 PST"]
[Termination "AsaHoffmann won on time"]

1. d4 {[%clk 0:02:50.6]} 1... Nf6 {[%clk 0:02:59.2]} 2. Bg5 {[%clk 0:02:47.4]}
2... Ne4 {[%clk 0:02:56.6]} 3. Bf4 {[%clk 0:02:47.1]} 3... d5 {[%clk 0:02:55.8]}
4. f3 {[%clk 0:02:47.1]} 4... Nf6 {[%clk 0:02:47.9]} 5. e4 {[%clk 0:02:47.1]}
5... e6 {[%clk 0:02:41.1]} 6. e5 {[%clk 0:02:46.5]} 6... Nfd7 {[%clk 0:02:40.7]}
7. Be3 {[%clk 0:02:46.6]} 7... c5 {[%clk 0:02:40.5]} 8. c3 {[%clk 0:02:46.5]}
8... Nc6 {[%clk 0:02:39.6]} 9. f4 {[%clk 0:02:46.5]} 9... Be7 {[%clk 0:02:25]}
10. Nf3 {[%clk 0:02:45.4]} 10... O-O {[%clk 0:02:23.8]} 11. Bd3 {[%clk
0:02:38.9]} 11... f5 {[%clk 0:02:23.4]} 12. Qd2 {[%clk 0:02:37.4]} 12... Rb8
{[%clk 0:02:18.3]} 13. O-O {[%clk 0:02:35.1]} 13... b5 {[%clk 0:02:17.3]} 14.
Kh1 {[%clk 0:02:25.2]} 14... b4 {[%clk 0:02:04.9]} 15. Rg1 {[%clk 0:02:24.6]}
15... bxc3 {[%clk 0:01:49.9]} 16. bxc3 {[%clk 0:02:21.5]} 16... Nb6 {[%clk
0:01:44.8]} 17. g4 {[%clk 0:02:11.2]} 17... Nc4 {[%clk 0:01:42.5]} 18. Qe2
{[%clk 0:01:57.5]} 18... Rb2 {[%clk 0:01:40.3]} 19. Nbd2 {[%clk 0:01:56.6]}
19... Qa5 {[%clk 0:01:03.1]} 20. Bxc4 {[%clk 0:01:48.5]} 20... dxc4 {[%clk
0:01:02.6]} 21. Qxc4 {[%clk 0:01:44]} 21... Rc2 {[%clk 0:00:46.1]} 22. gxf5
{[%clk 0:01:07.3]} 22... Rxc3 {[%clk 0:00:41.5]} 23. Qe2 {[%clk 0:01:05.9]} 1-0